bitfinex/quotes_BTCUSD_20240701
["timestamp","ask_amount","ask_price","bid_price","bid_amount"]
[1719854363667,0.75311585,63221.0,63220.0,0.002]
[1719854363839,0.75307998,63221.0,63220.0,0.002]
[1719854364283,0.75310143,63221.0,63220.0,0.002]
[1719854364623,0.7521503,63221.0,63220.0,0.002]
[1719854364825,0.4722018,63221.0,63220.0,0.002]
[1719854364943,0.4722018,63221.0,63220.0,0.25933603]
[1719854365385,0.58981659,63221.0,63220.0,0.002]
[1719854366810,0.4722018,63221.0,63220.0,0.002]
[1719854366970,0.75166951,63221.0,63220.0,0.002]
[1719854367176,0.63409168,63221.0,63220.0,0.002]
[1719854368050,0.67499993,63221.0,63220.0,0.002]
[1719854368251,0.44676622,63221.0,63220.0,0.25933603]
[1719854368470,0.36636622,63221.0,63220.0,0.25933603]
[1719854368657,0.36636622,63221.0,63220.0,0.2883849]
[1719854369588,0.32545797,63221.0,63220.0,0.2883849]
[1719854370834,0.30224858,63221.0,63220.0,0.2883849]
[1719854371047,0.30245797,63221.0,63220.0,0.2883849]
[1719854371746,0.28504837,63221.0,63220.0,0.2883849]
[1719854372193,0.28504837,63221.0,63220.0,0.25933603]
[1719854372396,0.28504837,63221.0,63220.0,0.002]
[1719854372555,0.61988208,63221.0,63220.0,0.002]
[1719854373108,0.63739089,63221.0,63220.0,0.002]
[1719854373253,0.61988208,63221.0,63220.0,0.002]
[1719854373465,0.63768632,63221.0,63220.0,0.002]
[1719854373893,0.63863745,63221.0,63220.0,0.002]
[1719854374165,0.66174146,63221.0,63220.0,0.002]
[1719854374296,0.69324059,63221.0,63220.0,0.002]
[1719854376395,0.75750087,63221.0,63220.0,0.002]
[1719854377935,0.75730443,63221.0,63220.0,0.002]
[1719854380015,0.82069943,63221.0,63220.0,0.002]
[1719854381691,0.82103662,63221.0,63220.0,0.002]
[1719854382071,0.82089417,63221.0,63220.0,0.002]
[1719854382877,0.80789417,63221.0,63220.0,0.001]
[1719854383051,0.00020939,63215.0,63214.0,0.33774969]
[1719854383219,0.17978597,63215.0,63214.0,0.59508572]
[1719854383419,0.32446906,63215.0,63214.0,0.59508572]
[1719854383639,0.34746906,63215.0,63214.0,0.59508572]
[1719854384052,0.31709535,63215.0,63214.0,0.59508572]
[1719854384505,0.32909535,63215.0,63214.0,0.59608572]
[1719854384919,0.32909535,63215.0,63214.0,0.62513459]
[1719854384920,0.32923242,63215.0,63214.0,0.62513459]
[1719854385432,0.14368405,63215.0,63214.0,0.76863459]
[1719854385631,0.02937467,63215.0,63214.0,0.76863459]
[1719854386340,0.01737467,63215.0,63214.0,0.76763459]
[1719854386688,0.03037467,63215.0,63214.0,0.76763459]
[1719854387453,0.02037467,63215.0,63214.0,0.76763459]
[1719854387753,0.02337467,63215.0,63214.0,0.76763459]
[1719854388335,0.02336584,63215.0,63214.0,0.76763459]
[1719854388735,0.02036584,63215.0,63214.0,0.76763459]
[1719854389192,0.01836584,63215.0,63214.0,0.76763459]
[1719854389459,0.01836584,63215.0,63214.0,0.77063459]
[1719854389654,0.01736584,63215.0,63214.0,0.77063459]
[1719854389840,0.01736584,63215.0,63214.0,0.80363459]
[1719854390042,0.01736584,63215.0,63214.0,0.80063459]
[1719854390240,0.01736584,63215.0,63214.0,0.80363459]
[1719854390427,0.01736584,63215.0,63214.0,0.80063459]
[1719854390622,0.01736584,63215.0,63214.0,0.80363459]
[1719854391705,0.19450089,63218.0,63217.0,0.2863849]
[1719854391829,0.01782112,63218.0,63217.0,0.4564849]
[1719854392035,0.01782112,63218.0,63217.0,0.6146699]
[1719854392255,0.09450089,63223.0,63222.0,0.54479155]
[1719854392472,0.09450089,63223.0,63222.0,0.68489155]
[1719854392473,0.23576443,63223.0,63222.0,0.68489155]
[1719854392675,0.11763832,63223.0,63222.0,0.68489155]
[1719854392880,0.23579913,63223.0,63222.0,0.68489155]
[1719854393553,0.02563832,63223.0,63222.0,0.71489155]
[1719854393753,0.008,63223.0,63222.0,0.68489155]
[1719854393968,0.016,63223.0,63222.0,0.76523459]
[1719854394168,0.11991492,63223.0,63222.0,0.76423459]
[1719854394368,0.10255301,63223.0,63222.0,0.76423459]
[1719854394624,0.008,63223.0,63222.0,0.76423459]
[1719854395028,0.11821061,63224.0,63222.0,0.76423459]
[1719854395204,0.11821061,63224.0,63223.0,0.2863849]
[1719854395409,0.13563558,63224.0,63223.0,0.2863849]
[1719854396242,0.13663558,63224.0,63223.0,0.2863849]
[1719854396463,0.01940659,63224.0,63223.0,0.2863849]
[1719854397047,0.002,63224.0,63223.0,0.2863849]
[1719854397248,0.001,63224.0,63223.0,0.2863849]
[1719854398172,0.0955395,63224.0,63223.0,0.2863849]
[1719854398580,0.0965395,63224.0,63223.0,0.2863849]
[1719854399346,0.002,63224.0,63223.0,0.2863849]
[1719854401464,0.002,63224.0,63223.0,0.4614849]
[1719854401667,0.002,63224.0,63223.0,1.2523349]
[1719854402455,0.002,63224.0,63223.0,1.16440155]
[1719854402630,0.002,63224.0,63223.0,1.19440155]
[1719854402834,0.19614019,63225.0,63223.0,1.19440155]
[1719854402835,0.19614019,63225.0,63224.0,0.54479155]
[1719854403087,0.3584739,63225.0,63224.0,0.54479155]
[1719854403219,0.19614019,63225.0,63224.0,0.54479155]
[1719854404250,0.19634958,63225.0,63224.0,0.54479155]
[1719854404455,0.19614019,63225.0,63224.0,0.54479155]
[1719854404970,0.19714019,63225.0,63224.0,0.54479155]
[1719854405573,0.19614019,63225.0,63224.0,0.54479155]
[1719854407945,0.19614019,63225.0,63224.0,0.62119155]
[1719854411124,0.19614019,63225.0,63224.0,0.65119155]
[1719854411537,0.19614019,63225.0,63224.0,1.18999355]
[1719854412164,0.19714019,63225.0,63224.0,1.19399355]
[1719854412413,0.19814019,63225.0,63224.0,1.19899355]
[1719854412578,0.19714019,63225.0,63224.0,1.18999355]
[1719854412783,0.19614019,63225.0,63224.0,1.18999355]
[1719854412980,0.19814019,63225.0,63224.0,1.19899355]
[1719854414797,0.19814019,63225.0,63224.0,1.51532855]
[1719854415214,0.19814019,63225.0,63224.0,1.19899355]
[1719854418560,0.29572719,63225.0,63224.0,1.19899355]
[1719854418978,0.4580609,63225.0,63224.0,0.69449155]
[1719854419218,0.4580609,63225.0,63224.0,0.55379155]
[1719854419441,0.47562733,63225.0,63224.0,0.55379155]
[1719854419649,0.4580609,63225.0,63224.0,0.55379155]
[1719854419847,0.47542173,63225.0,63224.0,0.55379155]
[1719854420074,0.4580609,63225.0,63224.0,0.55379155]
[1719854420283,0.47442222,63225.0,63224.0,0.54879155]
[1719854420541,0.31208851,63225.0,63224.0,0.54879155]
[1719854420950,0.31208851,63225.0,63224.0,1.19449355]
[1719854420951,0.29472719,63225.0,63224.0,1.19449355]
[1719854421104,0.29472719,63225.0,63224.0,1.25879355]
[1719854421323,0.29472719,63225.0,63224.0,1.25479355]
[1719854421324,0.29372719,63225.0,63224.0,1.25479355]
[1719854421525,0.101587,63225.0,63224.0,1.57112855]
[1719854421727,0.105587,63225.0,63224.0,2.64980253]
[1719854421926,0.101587,63225.0,63224.0,2.64980253]
[1719854422289,0.101587,63225.0,63224.0,2.35380253]
[1719854422290,0.098587,63225.0,63224.0,2.35380253]
[1719854422501,0.098587,63225.0,63224.0,2.65380253]
[1719854422888,0.098587,63225.0,63224.0,2.65280253]
[1719854423104,0.099587,63225.0,63224.0,2.65680253]
[1719854424225,0.099587,63225.0,63224.0,2.35680253]
[1719854424420,0.099587,63225.0,63224.0,1.57812855]
[1719854424770,0.099587,63225.0,63224.0,1.26179355]
[1719854425621,0.100427,63225.0,63224.0,1.26179355]
[1719854425802,0.100427,63225.0,63224.0,1.19749355]
[1719854426000,0.100427,63225.0,63224.0,1.51382855]
[1719854427791,0.100427,63225.0,63224.0,2.29250253]
[1719854427983,0.100427,63225.0,63224.0,1.41771098]
[1719854428119,0.100427,63225.0,63224.0,2.29250253]
[1719854428321,0.100427,63225.0,63224.0,1.99250253]
[1719854431321,0.100427,63225.0,63224.0,1.37262855]
[1719854431656,0.100427,63225.0,63224.0,1.43472855]
[1719854433957,0.100427,63225.0,63224.0,1.51252855]
[1719854434161,0.100427,63225.0,63224.0,1.81252855]
[1719854434403,0.100427,63225.0,63224.0,1.82886355]
[1719854435342,0.094427,63225.0,63224.0,1.82886355]
[1719854435861,0.094427,63225.0,63224.0,2.12886355]
[1719854436064,0.094427,63225.0,63224.0,1.82886355]
[1719854438565,0.094427,63225.0,63224.0,1.83084074]
[1719854439092,0.094427,63225.0,63224.0,1.83400424]
[1719854439314,0.094427,63225.0,63224.0,1.83202705]
[1719854439507,0.094427,63225.0,63224.0,1.51569205]
[1719854440605,0.094427,63225.0,63224.0,1.51252855]
[1719854442446,0.094427,63225.0,63224.0,1.37262855]
[1719854443476,0.094427,63225.0,63224.0,1.81212855]
[1719854444093,0.094427,63225.0,63224.0,2.12846355]
[1719854444300,0.079427,63225.0,63224.0,2.12846355]
[1719854445688,0.079427,63225.0,63224.0,2.59080253]
[1719854447954,0.079427,63225.0,63224.0,2.65510253]
[1719854448947,0.079427,63225.0,63224.0,2.35510253]
[1719854449520,0.079427,63225.0,63224.0,2.05510253]
[1719854450329,0.079427,63225.0,63224.0,1.43692855]
[1719854450534,0.079427,63225.0,63224.0,1.12059355]
[1719854450936,0.079427,63225.0,63224.0,1.43692855]
[1719854451540,0.079427,63225.0,63224.0,1.51792855]
[1719854451735,0.079427,63225.0,63224.0,2.28026753]
[1719854451960,0.079427,63225.0,63224.0,2.66140253]
[1719854458659,0.079427,63225.0,63224.0,2.66232653]
[1719854460695,0.079427,63225.0,63224.0,2.86232653]
[1719854460900,0.079427,63225.0,63224.0,2.79802653]
[1719854461110,0.079427,63225.0,63224.0,2.86232653]
[1719854462923,0.079427,63225.0,63224.0,2.79802653]
[1719854463159,0.079427,63225.0,63224.0,2.36232653]
[1719854463360,0.079427,63225.0,63224.0,2.86232653]
[1719854466820,0.079427,63225.0,63224.0,3.17866153]
[1719854467024,0.079427,63225.0,63224.0,2.86232653]
[1719854467387,0.079427,63225.0,63224.0,3.17866153]
[1719854468167,0.079427,63225.0,63224.0,3.11436153]
[1719854468333,0.079427,63225.0,63224.0,3.17866153]
[1719854469359,0.079427,63225.0,63224.0,2.59802653]
[1719854469682,0.079427,63225.0,63224.0,2.86232653]
[1719854469819,0.079427,63225.0,63224.0,2.79802653]
[1719854470019,0.079427,63225.0,63224.0,2.86232653]
[1719854472998,0.079427,63225.0,63224.0,2.49802653]
[1719854473494,0.079427,63225.0,63224.0,2.86232653]
[1719854475069,0.079427,63225.0,63224.0,2.78132653]
[1719854475329,0.079427,63225.0,63224.0,2.71652653]
[1719854475913,0.079427,63225.0,63224.0,2.11652653]
[1719854476364,0.079427,63225.0,63224.0,2.41652653]
[1719854477103,0.079427,63225.0,63224.0,2.71652653]
[1719854477599,0.079427,63225.0,63224.0,2.51652653]
[1719854477826,0.079427,63225.0,63224.0,2.71652653]
[1719854484687,0.079427,63225.0,63224.0,2.85552653]
[1719854486024,0.079427,63225.0,63224.0,3.17186153]
[1719854486229,0.079427,63225.0,63224.0,3.58340653]
[1719854486375,0.079427,63225.0,63224.0,3.68340653]
[1719854486551,0.079427,63225.0,63224.0,3.81487035]
[1719854486753,0.079427,63225.0,63224.0,4.16591049]
[1719854486953,0.079427,63225.0,63224.0,3.81487035]
[1719854487156,0.078427,63225.0,63224.0,3.81187035]
[1719854487363,0.077427,63225.0,63224.0,4.2301332]
[1719854487602,0.078427,63225.0,63224.0,3.9277982]
[1719854487973,0.078427,63225.0,63224.0,3.57676168]
[1719854488177,0.078427,63225.0,63224.0,3.37407153]
[1719854488378,0.078427,63225.0,63224.0,3.69040653]
[1719854488602,0.078427,63225.0,63224.0,3.37407153]
[1719854488766,0.079427,63225.0,63224.0,3.38707153]
[1719854488970,0.079427,63225.0,63224.0,3.70340653]
[1719854490035,0.079427,63225.0,63224.0,3.38707153]
[1719854492206,15.081567,63229.0,63228.0,2.5398019]
[1719854492361,15.081567,63229.0,63228.0,2.86644088]
[1719854492762,15.081567,63229.0,63228.0,2.92764088]
[1719854492960,15.081567,63229.0,63228.0,3.00784088]
[1719854493906,15.082567,63229.0,63228.0,3.01984088]
[1719854494060,15.083567,63229.0,63228.0,3.03184088]
[1719854495289,15.083567,63229.0,63228.0,3.03381794]
[1719854495690,15.083567,63229.0,63228.0,3.03698124]
[1719854496482,15.083567,63229.0,63228.0,3.03500418]
[1719854497474,15.083567,63229.0,63228.0,2.51298918]
[1719854497677,15.083567,63229.0,63228.0,2.57412588]
[1719854497918,10.083567,63229.0,63228.0,2.17412588]
[1719854498114,10.083567,63229.0,63228.0,2.06823253]
[1719854498321,10.083567,63229.0,63228.0,2.43253253]
[1719854498555,10.083567,63229.0,63228.0,2.73253253]
[1719854499405,10.083567,63229.0,63228.0,2.13253253]
[1719854500477,10.083567,63229.0,63228.0,2.43253253]
[1719854501034,10.083567,63229.0,63228.0,2.13253253]
[1719854501501,10.083567,63229.0,63228.0,2.43253253]
[1719854501774,5.083567,63229.0,63228.0,2.43253253]
[1719854502198,5.083567,63229.0,63228.0,2.13253253]
[1719854502378,5.083567,63229.0,63228.0,1.45387855]
[1719854502580,5.223867,63229.0,63228.0,1.65387855]
[1719854502789,5.223867,63229.0,63228.0,1.95387855]
[1719854502984,5.223867,63229.0,63228.0,2.27019355]
[1719854502985,5.160767,63229.0,63228.0,2.27019355]
[1719854503799,5.083567,63229.0,63228.0,2.73253253]
[1719854503962,5.083567,63229.0,63228.0,2.87563253]
[1719854504447,5.083567,63229.0,63228.0,3.19194753]
[1719854505789,5.083567,63229.0,63228.0,3.21060849]
[1719854506148,5.083567,63229.0,63228.0,3.30574849]
[1719854512505,0.083567,63229.0,63228.0,3.30574849]
[1719854515434,0.083567,63229.0,63228.0,3.40574849]
[1719854515850,0.083567,63229.0,63228.0,3.42874849]
[1719854516073,0.083567,63229.0,63228.0,3.74506349]
[1719854516453,0.082567,63229.0,63228.0,3.73306349]
[1719854516672,0.082567,63229.0,63228.0,3.73506349]
[1719854517171,0.081567,63229.0,63228.0,3.72106349]
[1719854518421,0.081567,63229.0,63228.0,3.73506349]
[1719854518631,0.081567,63229.0,63228.0,3.74906349]
[1719854519182,0.081567,63229.0,63228.0,3.68476349]
[1719854519362,0.081567,63229.0,63228.0,3.74906349]
[1719854521366,0.081567,63229.0,63228.0,3.43274849]
[1719854522020,0.081567,63229.0,63228.0,3.74906349]
[1719854522612,0.081567,63229.0,63228.0,3.74998749]
[1719854528506,0.081567,63229.0,63228.0,3.77869232]
[1719854530003,0.049936,63229.0,63228.0,3.77869232]
[1719854530179,0.00842,63240.0,63239.0,1.78619155]
[1719854530405,0.00842,63240.0,63239.0,2.74852053]
[1719854530525,0.00842,63240.0,63239.0,3.53987153]
[1719854530726,0.00842,63240.0,63239.0,3.31427153]
[1719854530931,0.00842,63240.0,63239.0,3.37857153]
[1719854531398,0.00842,63240.0,63239.0,1.17801255]
[1719854531400,0.14592,63240.0,63239.0,1.17801255]
[1719854531709,0.14592,63240.0,63238.0,0.54479155]
[1719854531710,0.0826,63239.0,63238.0,0.54479155]
[1719854531858,0.16153913,63239.0,63238.0,0.54479155]
[1719854532068,0.16153913,63239.0,63237.0,0.158133]
[1719854532069,0.1449,63238.0,63237.0,0.158133]
[1719854532266,0.16153913,63238.0,63237.0,0.70292455]
[1719854532685,1.16153913,63238.0,63237.0,0.70292455]
[1719854532897,1.16153913,63238.0,63237.0,0.54479155]
[1719854533355,1.16153913,63238.0,63237.0,0.55376849]
[1719854533498,1.16153913,63238.0,63237.0,0.56076849]
[1719854533698,1.16155677,63238.0,63237.0,0.56393159]
[1719854534759,1.22609479,63238.0,63237.0,0.56195465]
[1719854535115,1.22609479,63238.0,63237.0,0.52974268]
[1719854535116,1.32084851,63238.0,63237.0,0.52974268]
[1719854535329,1.64887396,63238.0,63237.0,0.12250665]
[1719854535523,1.64887396,63238.0,63229.0,0.07934304]
[1719854535524,0.06980939,63230.0,63229.0,0.36572794]
[1719854535741,0.10087375,63230.0,63229.0,0.33667907]
[1719854536486,1.12497375,63230.0,63229.0,0.33667907]
[1719854536923,1.12492634,63230.0,63229.0,0.33667907]
[1719854537111,1.24517774,63230.0,63229.0,0.36672794]
[1719854537481,1.24517774,63230.0,63229.0,0.33767907]
[1719854537904,1.24526054,63230.0,63229.0,0.33767907]
[1719854538103,1.20714881,63230.0,63229.0,0.33767907]
[1719854538839,1.21214881,63230.0,63229.0,0.33767907]
[1719854539017,1.35111883,63230.0,63229.0,0.33867907]
[1719854539182,1.32785218,63230.0,63229.0,0.08134304]
[1719854539382,1.32085218,63230.0,63229.0,0.08034304]
[1719854539979,1.32085218,63230.0,63224.0,0.02997287]
[1719854539980,0.00020939,63225.0,63224.0,0.000924]
[1719854540153,0.42393969,63225.0,63224.0,0.000924]
[1719854540339,0.70295316,63225.0,63224.0,0.000924]
[1719854540518,1.70295316,63225.0,63224.0,0.000924]
[1719854540715,1.71639931,63225.0,63224.0,0.000924]
[1719854540916,1.94969931,63225.0,63224.0,0.000924]
[1719854541097,2.06771645,63225.0,63224.0,0.000924]
[1719854541297,2.06866758,63225.0,63224.0,0.000924]
[1719854541703,1.95065044,63225.0,63224.0,0.000924]
[1719854541994,2.06866099,63225.0,63224.0,0.000924]
[1719854542160,1.95165044,63225.0,63224.0,0.000924]
[1719854542361,1.95069931,63225.0,63224.0,0.000924]
[1719854542581,1.93725316,63225.0,63224.0,0.000924]
[1719854542774,1.93925316,63225.0,63224.0,0.000924]
[1719854543364,1.93926138,63225.0,63224.0,0.000924]
[1719854543841,1.93926213,63225.0,63224.0,0.000924]
[1719854544312,1.93926213,63225.0,63221.0,0.08026704]
[1719854544313,0.12606052,63222.0,63221.0,0.08026704]
[1719854544489,0.50848823,63222.0,63221.0,0.08026704]
[1719854544691,0.53148823,63222.0,63221.0,0.08026704]
[1719854545659,1.53448823,63222.0,63221.0,0.08026704]
[1719854546356,1.53842475,63222.0,63221.0,0.08026704]
[1719854546592,1.70075849,63222.0,63221.0,0.08026704]
[1719854548126,1.69980736,63222.0,63221.0,0.08026704]
[1719854548462,1.70075849,63222.0,63221.0,0.08026704]
[1719854548669,1.69980736,63222.0,63221.0,0.08026704]
[1719854548885,1.53747365,63222.0,63221.0,0.08026704]
[1719854549721,1.53748124,63222.0,63221.0,0.08026704]
[1719854549925,1.45018124,63222.0,63221.0,0.33760307]
[1719854550124,1.51448124,63222.0,63221.0,0.33760307]
[1719854550341,1.49784837,63222.0,63221.0,0.33760307]
[1719854552948,1.51447109,63222.0,63221.0,0.08026704]
[1719854553173,1.64789612,63222.0,63221.0,0.000924]
[1719854553405,1.67184725,63222.0,63221.0,0.000924]
[1719854553552,1.67089612,63222.0,63221.0,0.000924]
[1719854553769,1.67089612,63222.0,63221.0,0.08026704]
[1719854553974,1.6542734,63222.0,63221.0,0.08026704]
[1719854554590,1.67091902,63222.0,63221.0,0.08026704]
[1719854554802,1.51449399,63222.0,63221.0,0.33760307]
[1719854555227,1.51449399,63222.0,63221.0,0.36665194]
[1719854555431,1.33550939,63222.0,63221.0,0.36665194]
[1719854557106,1.107,63222.0,63221.0,0.52482694]
[1719854557905,1.103,63222.0,63221.0,0.52482694]
[1719854558315,1.106,63222.0,63221.0,0.52482694]
[1719854558863,1.103,63222.0,63221.0,0.52482694]
[1719854559073,1.106,63222.0,63221.0,0.52482694]
[1719854559360,1.006,63222.0,63221.0,0.84117694]
[1719854559558,1.0,63222.0,63221.0,1.15752694]
[1719854559962,1.0,63222.0,63221.0,1.22382694]
[1719854560291,1.0,63222.0,63221.0,0.90947694]
[1719854560488,1.0,63222.0,63221.0,0.90747694]
[1719854560697,1.08482222,63222.0,63221.0,0.36865194]
[1719854561088,1.08482222,63222.0,63221.0,0.52682694]
[1719854561307,1.08482222,63222.0,63221.0,0.36665194]
[1719854561512,1.08482222,63222.0,63221.0,0.37065194]
[1719854561926,1.08582222,63222.0,63221.0,0.37365194]
[1719854562122,1.08482222,63222.0,63221.0,0.36665194]
[1719854562366,1.08482222,63222.0,63221.0,0.52482694]
[1719854562579,1.08482222,63222.0,63221.0,0.52782694]
[1719854562726,1.08482222,63222.0,63221.0,0.36965194]
[1719854562957,1.08482222,63222.0,63221.0,0.37265194]
[1719854564205,1.10143413,63222.0,63221.0,0.37265194]
[1719854564917,1.10164352,63222.0,63221.0,0.37265194]
[1719854565117,1.10164352,63222.0,63221.0,0.34360307]
[1719854565514,1.10164352,63222.0,63221.0,0.08626704]
[1719854565694,1.10164352,63222.0,63221.0,0.34360307]
[1719854566069,1.26634352,63222.0,63221.0,0.34060307]
[1719854566260,1.24973161,63222.0,63221.0,0.34060307]
[1719854566397,1.26937564,63222.0,63221.0,0.34060307]
[1719854566983,1.26937564,63222.0,63221.0,0.36965194]
[1719854567194,1.26937564,63222.0,63221.0,0.36665194]
[1719854567195,1.18455342,63222.0,63221.0,0.36665194]
[1719854567603,1.18155342,63222.0,63221.0,0.33760307]
[1719854567801,1.18155342,63222.0,63221.0,0.36665194]
[1719854567802,1.18455342,63222.0,63221.0,0.36665194]
[1719854569343,1.18755342,63222.0,63221.0,0.08026704]
[1719854569547,1.30100939,63222.0,63221.0,0.33760307]
[1719854569727,1.31766366,63222.0,63221.0,0.33760307]
[1719854570384,1.46913916,63222.0,63221.0,0.33760307]
[1719854570549,1.46913916,63222.0,63221.0,0.08026704]
[1719854570897,1.63147814,63222.0,63221.0,0.08026704]
[1719854571252,1.64559958,63222.0,63221.0,0.08026704]
[1719854572328,1.64559958,63222.0,63221.0,0.000924]
[1719854572329,1.80745071,63222.0,63221.0,0.000924]
[1719854572527,1.97143625,63222.0,63221.0,0.000924]
[1719854572728,1.94066054,63222.0,63221.0,0.000924]
[1719854572907,1.97121684,63222.0,63221.0,0.000924]
[1719854573100,2.11580084,63222.0,63221.0,0.000924]
[1719854573448,1.97121684,63222.0,63221.0,0.000924]
[1719854573672,1.63584134,63222.0,63221.0,0.000924]
[1719854573899,1.65884134,63222.0,63221.0,0.000924]
[1719854574461,1.65284134,63222.0,63221.0,0.000924]
[1719854574641,1.67384134,63222.0,63221.0,0.002924]
[1719854575006,1.66284134,63222.0,63221.0,0.001924]
[1719854575213,1.82517505,63222.0,63221.0,0.001924]
[1719854575414,1.83717505,63222.0,63221.0,0.002924]
[1719854575820,1.81002803,63222.0,63221.0,0.001924]
[1719854576018,1.81002803,63222.0,63221.0,0.002924]
[1719854576019,1.83962441,63222.0,63221.0,0.002924]
[1719854578169,1.6772907,63222.0,63221.0,0.002924]
[1719854579147,1.76515554,63222.0,63221.0,0.002924]
[1719854579374,1.79553266,63222.0,63221.0,0.002924]
[1719854580153,1.67766216,63222.0,63221.0,0.002924]
[1719854581757,1.66068092,63222.0,63221.0,0.002924]
[1719854581965,1.82301463,63222.0,63221.0,0.002924]
[1719854582180,1.82282969,63222.0,63221.0,0.002924]
[1719854583834,1.88722969,63222.0,63221.0,0.002924]
[1719854584109,2.02916736,63222.0,63221.0,0.002924]
[1719854584687,1.98818182,63222.0,63221.0,0.002924]
[1719854584912,2.02916797,63222.0,63221.0,0.002924]
[1719854585140,1.8872303,63222.0,63221.0,0.002924]
[1719854588044,1.87403857,63222.0,63221.0,0.002924]
[1719854588220,1.88751337,63222.0,63221.0,0.002924]
[1719854589246,1.93017734,63222.0,63221.0,0.002924]
[1719854589442,0.00095113,63208.0,63207.0,0.08026704]
[1719854589646,0.72621449,63208.0,63207.0,0.08026704]
[1719854589890,0.82621449,63208.0,63207.0,0.08026704]
[1719854590554,0.82621449,63208.0,63207.0,0.000924]
[1719854590555,1.00919916,63208.0,63207.0,0.000924]
[1719854590775,2.02541425,63208.0,63207.0,0.000924]
[1719854590986,2.02541425,63208.0,63207.0,0.002924]
[1719854591382,2.02541425,63208.0,63207.0,0.005924]
[1719854591383,2.03511157,63208.0,63207.0,0.005924]
[1719854591384,2.02559242,63208.0,63207.0,0.005924]
[1719854591699,2.02559242,63208.0,63207.0,0.003924]
[1719854591830,1.77606584,63208.0,63207.0,0.003924]
[1719854592036,1.77606584,63208.0,63207.0,0.004924]
[1719854592037,1.6529284,63208.0,63207.0,0.004924]
[1719854592260,1.6299284,63208.0,63207.0,0.004924]
[1719854592463,1.58891495,63208.0,63207.0,0.004924]
[1719854592689,1.58891495,63208.0,63207.0,0.001924]
[1719854592946,1.60291495,63208.0,63207.0,0.159624]
[1719854593328,1.60291495,63208.0,63207.0,0.23896704]
[1719854593447,1.70716389,63208.0,63207.0,0.23896704]
[1719854594019,1.65576389,63208.0,63207.0,0.23896704]
[1719854594144,1.62976389,63208.0,63207.0,0.23796704]
[1719854594341,1.54194647,63208.0,63207.0,0.000924]
[1719854594590,1.57897337,63208.0,63207.0,0.000924]
[1719854594762,1.81556023,63208.0,63207.0,0.000924]
[1719854594968,1.89581519,63208.0,63207.0,0.000924]
[1719854595165,1.90581519,63208.0,63207.0,0.000924]
[1719854596314,1.92527037,63208.0,63207.0,0.000924]
[1719854597477,1.92544471,63208.0,63207.0,0.000924]
[1719854597675,1.98884671,63208.0,63207.0,0.000924]
[1719854597931,2.00184671,63208.0,63207.0,0.000924]
[1719854598267,2.14664827,63208.0,63207.0,0.000924]
[1719854598471,2.22051068,63208.0,63207.0,0.000924]
[1719854599223,1.93071068,63208.0,63207.0,0.000924]
[1719854599389,1.78890912,63208.0,63207.0,0.000924]
[1719854599751,1.72704671,63208.0,63207.0,0.000924]
[1719854600128,1.78877694,63208.0,63207.0,0.000924]
[1719854600337,1.47797149,63208.0,63207.0,0.000924]
[1719854600542,1.47797149,63208.0,63207.0,0.2873089]
[1719854600543,1.31456949,63208.0,63207.0,0.2873089]
[1719854600749,1.22014019,63208.0,63207.0,1.0524389]
[1719854600952,1.22014019,63208.0,63207.0,1.3988589]
[1719854600953,1.024,63208.0,63207.0,1.3988589]
[1719854601155,1.024,63208.0,63207.0,2.47761788]
[1719854601156,0.5781,63208.0,63207.0,2.47761788]
[1719854601358,0.0859,63208.0,63207.0,2.79403788]
[1719854601559,0.00084,63224.0,63223.0,0.6267549]
[1719854601766,0.00084,63224.0,63223.0,1.2894349]
[1719854601962,0.00084,63224.0,63223.0,1.2594349]
[1719854602138,0.00084,63224.0,63223.0,1.2894349]
[1719854602345,0.00084,63224.0,63223.0,1.2594349]
[1719854602560,0.00084,63224.0,63223.0,1.2894349]
[1719854602766,0.00084,63224.0,63223.0,1.2594349]
[1719854602967,0.00084,63224.0,63223.0,0.9430949]
[1719854603668,0.00184,63224.0,63223.0,1.2894349]
[1719854604284,0.00184,63224.0,63223.0,1.27441249]
[1719854604490,0.00284,63224.0,63223.0,1.27441249]
[1719854604687,0.00284,63224.0,63223.0,1.26457664]
[1719854605011,0.00284,63224.0,63223.0,1.27757664]
[1719854605149,0.00284,63224.0,63223.0,1.26457664]
[1719854605353,0.00184,63224.0,63223.0,1.26457664]
[1719854605549,0.00284,63224.0,63223.0,1.27757664]
[1719854605746,0.00284,63224.0,63223.0,1.2724349]
[1719854607203,0.00284,63224.0,63223.0,1.2594349]
[1719854607404,0.00184,63224.0,63223.0,1.2594349]
[1719854607589,0.00184,63224.0,63223.0,1.2734349]
[1719854612461,0.00184,63224.0,63223.0,0.7748949]
[1719854612669,0.00184,63224.0,63223.0,0.4585549]
[1719854612870,0.00184,63224.0,63223.0,0.3003849]
[1719854615919,0.00184,63224.0,63223.0,0.4585549]
[1719854616079,0.00184,63224.0,63223.0,0.3003849]
[1719854616494,0.00184,63224.0,63223.0,0.17217]
[1719854616864,0.00184,63224.0,63223.0,2.43371388]
[1719854616994,0.00184,63224.0,63223.0,2.79471388]
[1719854617195,0.00184,63224.0,63223.0,3.11105388]
[1719854618174,0.00184,63224.0,63223.0,2.51105388]
[1719854618303,0.00184,63224.0,63223.0,2.03371388]
[1719854620210,0.00184,63224.0,63223.0,1.80371388]
[1719854620410,0.00184,63224.0,63223.0,1.2386949]
[1719854620584,0.00184,63224.0,63223.0,1.5550349]
[1719854620990,0.00184,63224.0,63223.0,1.3550349]
[1719854621309,0.00184,63224.0,63223.0,1.5550349]
[1719854621657,0.00184,63224.0,63223.0,1.71737388]
[1719854621856,0.00184,63224.0,63223.0,2.01737388]
[1719854622079,0.00184,63224.0,63223.0,2.33371388]
[1719854622450,0.00184,63224.0,63223.0,2.03371388]
[1719854623312,0.00184,63224.0,63223.0,2.33371388]
[1719854624176,0.00184,63224.0,63223.0,2.03371388]
[1719854625721,0.00184,63224.0,63223.0,2.65005388]
[1719854625926,0.00184,63224.0,63223.0,2.63371388]
[1719854627922,0.00184,63224.0,63223.0,2.33371388]
[1719854628133,0.00184,63224.0,63223.0,2.03371388]
[1719854630114,0.00184,63224.0,63223.0,2.33371388]
[1719854630314,0.00184,63224.0,63223.0,2.03371388]
[1719854631934,0.00184,63224.0,63223.0,1.6375749]
[1719854635116,0.00184,63224.0,63223.0,1.4375749]
[1719854635337,0.00184,63224.0,63223.0,1.6375749]
[1719854639025,0.0014811,63224.0,63223.0,1.6375749]
[1719854640430,0.0014811,63224.0,63223.0,1.4075749]